bitfinex/quotes_BTCUSD_20220109
["timestamp","ask_amount","ask_price","bid_price","bid_amount"]
[1641762727503,0.0003,42501.0,42499.0,0.00020565]
[1641762728100,0.0003,42501.0,42498.0,0.49237538]
[1641762728299,0.0003,42501.0,42498.0,0.5584704]
[1641762728499,0.0003,42501.0,42499.0,0.027]
[1641762729103,0.0003,42501.0,42500.0,1.047]
[1641762729301,0.0003,42501.0,42500.0,1.42952591]
[1641762729547,0.0003,42501.0,42500.0,1.57952591]
[1641762729946,0.00024,42501.0,42500.0,1.57952591]
[1641762730346,0.00024,42501.0,42500.0,1.59552591]
[1641762731148,0.00024,42501.0,42500.0,1.68727591]
[1641762731347,0.00024,42501.0,42500.0,1.73727591]
[1641762731546,0.00024,42501.0,42500.0,1.72127591]
[1641762732254,0.00024,42501.0,42500.0,0.28875]
[1641762732450,0.35275829,42505.0,42500.0,0.33375]
[1641762733293,0.35275829,42505.0,42500.0,0.18375]
[1641762733697,0.35275829,42505.0,42500.0,0.1839554]
[1641762733897,0.05881432,42503.0,42500.0,0.1839554]
[1641762734395,0.05881432,42503.0,42500.0,0.1669554]
[1641762734799,0.05881432,42503.0,42500.0,0.16675]
[1641762735596,0.05881432,42503.0,42500.0,0.13875]
[1641762736398,0.06581432,42503.0,42500.0,0.18175]
[1641762737543,0.00029786,42502.0,42500.0,0.18175]
[1641762738343,0.00929786,42502.0,42500.0,0.22275]
[1641762739744,0.00029786,42502.0,42500.0,0.13875]
[1641762742499,0.00029774,42501.0,42500.0,0.13875]
[1641762742696,0.00029774,42501.0,42500.0,0.047]
[1641762744394,0.00629774,42501.0,42500.0,0.047]
[1641762745056,0.00629774,42501.0,42498.0,0.00020566]
[1641762745655,0.00029774,42501.0,42497.0,0.88195795]
[1641762745853,0.00029774,42501.0,42497.0,0.88216361]
[1641762746255,0.00029774,42501.0,42498.0,0.058807]
[1641762747561,0.00029761,42500.0,42498.0,0.058807]
[1641762748500,0.00023761,42500.0,42498.0,0.058807]
[1641762750403,0.00023761,42500.0,42497.0,1.03216361]
[1641762751302,0.00023761,42500.0,42497.0,1.03195795]
[1641762751503,0.33406845,42500.0,42497.0,1.03195795]
[1641762751704,0.66304364,42500.0,42497.0,0.88195795]
[1641762752548,0.38491499,42499.0,42497.0,0.88195795]
[1641762752752,0.83906543,42498.0,42497.0,0.88195795]
[1641762752949,1.22368543,42498.0,42497.0,0.88195795]
[1641762753950,1.56728223,42498.0,42497.0,0.88195795]
[1641762754549,1.57728223,42498.0,42497.0,0.88195795]
[1641762755651,1.56728223,42498.0,42497.0,0.88195795]
[1641762756296,1.56856646,42498.0,42497.0,0.88195795]
[1641762756496,1.57856646,42498.0,42497.0,0.88195795]
[1641762757497,1.57886132,42498.0,42497.0,0.88195795]
[1641762757697,1.56886132,42498.0,42497.0,0.88195795]
[1641762758295,2.06886132,42498.0,42497.0,0.88195795]
[1641762758497,2.08086132,42498.0,42497.0,0.88195795]
[1641762758697,2.13086132,42498.0,42497.0,0.88195795]
[1641762759098,2.48086132,42498.0,42497.0,0.88195795]
[1641762759298,2.13086132,42498.0,42497.0,0.88195795]
[1641762759754,1.15,42497.0,42495.0,0.00020567]
[1641762759953,1.15,42497.0,42494.0,0.68527331]
[1641762759954,2.51123094,42496.0,42494.0,0.68527331]
[1641762760150,1.53319103,42495.0,42494.0,0.68527331]
[1641762760351,1.91781103,42495.0,42494.0,0.68527331]
[1641762760654,2.01906612,42495.0,42494.0,0.68527331]
[1641762761051,2.51906612,42495.0,42494.0,0.68527331]
[1641762761253,2.56906612,42495.0,42494.0,0.68527331]
[1641762761551,2.56906612,42495.0,42492.0,0.0002058]
[1641762761552,1.208841,42493.0,42492.0,0.0002058]
[1641762761752,1.95763883,42493.0,42492.0,0.0002058]
[1641762762051,2.50763883,42493.0,42492.0,0.0002058]
[1641762762252,2.50763883,42493.0,42490.0,0.00020581]
[1641762762451,0.38462,42492.0,42490.0,0.00020581]
[1641762762652,1.30477391,42491.0,42490.0,0.00020581]
[1641762762852,1.68939391,42491.0,42490.0,0.00020581]
[1641762763055,0.73939391,42491.0,42490.0,0.00020581]
[1641762763306,0.73939391,42491.0,42481.0,1.21289673]
[1641762763503,0.30918387,42483.0,42481.0,1.21289673]
[1641762764503,0.22661069,42482.0,42481.0,1.21289673]
[1641762764704,0.19569231,42482.0,42481.0,1.21289673]
[1641762765305,0.19569231,42482.0,42481.0,0.424]
[1641762766603,0.20169231,42482.0,42481.0,0.424]
[1641762767054,0.006,42482.0,42481.0,0.424]
[1641762767653,0.00029285,42482.0,42481.0,0.424]
[1641762772505,0.25100341,42487.0,42481.0,0.514]
[1641762773305,0.25100341,42487.0,42482.0,0.0002057]
[1641762773709,0.05884013,42485.0,42482.0,0.0002057]
[1641762773906,0.9997943,42482.0,42481.0,0.004]
[1641762774550,0.9997943,42482.0,42481.0,0.029]
[1641762775752,0.9997943,42482.0,42481.0,0.004]
[1641762776554,0.9997943,42482.0,42481.0,0.022]
[1641762777154,1.05863794,42482.0,42481.0,0.022]
[1641762777554,1.05893079,42482.0,42481.0,0.022]
[1641762777756,1.05893079,42482.0,42481.0,0.004]
[1641762778597,1.05893079,42482.0,42481.0,0.024]
[1641762779696,1.05893079,42482.0,42481.0,0.004]
[1641762780298,1.44355079,42482.0,42481.0,0.004]
[1641762780501,1.79497827,42482.0,42481.0,0.021]
[1641762781800,1.79497827,42482.0,42481.0,0.004]
[1641762782456,1.81097827,42482.0,42481.0,0.004]
[1641762783455,1.81097827,42482.0,42476.0,0.00794474]
[1641762783456,1.53462,42480.0,42476.0,0.00794474]
[1641762783655,0.38583948,42477.0,42473.0,0.00522276]
[1641762783853,0.38494028,42476.0,42473.0,0.00522276]
[1641762784057,0.38462,42475.0,42473.0,0.00522276]
[1641762784253,1.65425319,42474.0,42473.0,0.00522276]
[1641762784453,1.69543303,42474.0,42473.0,0.00522276]
[1641762784954,0.89543303,42474.0,42473.0,0.00522276]
[1641762785353,0.89543303,42474.0,42471.0,0.004]
[1641762785554,0.38462,42473.0,42471.0,0.004]
[1641762786609,0.39362,42473.0,42471.0,0.004]
[1641762787006,0.4524793,42473.0,42471.0,0.004]
[1641762787606,0.45029159,42472.0,42471.0,0.004]
[1641762787806,0.00029159,42472.0,42471.0,0.004]
[1641762788609,0.00629159,42472.0,42471.0,0.004]
[1641762789010,0.2206616,42472.0,42471.0,0.004]
[1641762789751,0.2146616,42472.0,42471.0,0.004]
[1641762790547,0.2196616,42472.0,42471.0,0.004]
[1641762791855,0.00029159,42472.0,42471.0,0.004]
[1641762792449,0.015,42472.0,42471.0,0.004]
[1641762793804,0.00029159,42474.0,42471.0,0.004]
[1641762794603,0.00029159,42474.0,42471.0,0.055]
[1641762795803,0.00029159,42474.0,42471.0,0.004]
[1641762796604,0.00029159,42474.0,42471.0,0.036]
[1641762797549,0.39351368,42476.0,42471.0,0.036]
[1641762797749,0.39351368,42476.0,42471.0,0.004]
[1641762798550,0.38462,42475.0,42471.0,0.02020573]
[1641762798751,0.36823971,42472.0,42471.0,0.02020573]
[1641762799151,0.05885935,42473.0,42471.0,0.02020573]
[1641762799554,0.38462,42472.0,42471.0,0.02]
[1641762799753,0.38462,42472.0,42471.0,0.004]
[1641762800555,0.81014593,42472.0,42471.0,0.015]
[1641762801904,0.80414593,42472.0,42471.0,0.004]
[1641762802604,0.80943752,42472.0,42471.0,0.016]
[1641762803904,1.80423182,42472.0,42471.0,0.004]
[1641762804564,1.80423182,42472.0,42471.0,0.019]
[1641762805765,1.80423182,42472.0,42471.0,0.004]
[1641762806665,1.80423182,42472.0,42471.0,0.02]
[1641762807870,1.80423182,42472.0,42471.0,0.004]
[1641762808499,1.38470589,42472.0,42471.0,0.02]
[1641762809703,1.38470589,42472.0,42471.0,0.004]
[1641762810702,1.38470589,42472.0,42471.0,0.02]
[1641762812454,1.38470589,42472.0,42471.0,0.004]
[1641762813252,1.00008589,42472.0,42471.0,0.004]
[1641762814553,1.00008589,42472.0,42471.0,0.037]
[1641762815153,1.00008589,42472.0,42471.0,0.39125281]
[1641762815806,1.00008589,42472.0,42471.0,0.35825281]
[1641762818404,1.00008589,42472.0,42471.0,0.004]
[1641762820159,1.45845407,42472.0,42471.0,0.004]
[1641762823912,1.24724411,42472.0,42471.0,0.004]
[1641762824110,1.00008589,42472.0,42471.0,0.004]
[1641762828654,1.00008589,42472.0,42471.0,0.022]
[1641762829954,1.00008589,42472.0,42471.0,0.004]
[1641762830803,1.00008589,42472.0,42471.0,0.024]
[1641762832007,1.25183183,42472.0,42471.0,0.004]
[1641762833706,1.63645183,42472.0,42471.0,0.004]
[1641762834755,1.64145183,42472.0,42471.0,0.004]
[1641762835957,1.63645183,42472.0,42471.0,0.004]
[1641762836558,1.63645183,42472.0,42463.0,0.90095403]
[1641762836559,0.05886808,42468.0,42463.0,0.89599976]
[1641762836759,1.26898665,42470.0,42463.0,0.89599976]
[1641762836760,0.00127,42464.0,42463.0,0.89599976]
[1641762837056,0.00127,42464.0,42461.0,0.004]
[1641762837263,0.32115448,42463.0,42461.0,0.004]
[1641762837656,0.56325689,42463.0,42461.0,0.004]
[1641762838056,0.72608231,42462.0,42461.0,0.004]
[1641762838316,1.61193642,42462.0,42461.0,0.004]
[1641762838610,1.11193642,42462.0,42461.0,0.004]
[1641762840413,0.76193642,42462.0,42461.0,0.004]
[1641762840816,0.77170231,42462.0,42461.0,0.004]
[1641762841115,1.17294127,42462.0,42461.0,0.004]
[1641762841514,0.77294127,42462.0,42461.0,0.004]
[1641762841913,0.76194127,42462.0,42461.0,0.004]
[1641762842154,0.38585896,42462.0,42461.0,0.004]
[1641762842353,0.38462,42462.0,42461.0,0.004]
[1641762842553,0.38491033,42462.0,42461.0,0.004]
[1641762842753,0.40791033,42462.0,42461.0,0.004]
[1641762843955,0.00029033,42462.0,42461.0,0.004]
[1641762844756,0.00029033,42462.0,42461.0,0.018]
[1641762846013,0.00029033,42462.0,42461.0,0.004]
[1641762846807,0.00029033,42462.0,42461.0,0.017]
[1641762847907,0.00029033,42462.0,42461.0,0.004]
[1641762848710,0.00029033,42462.0,42461.0,0.017]
[1641762849758,0.45105385,42463.0,42462.0,0.53667198]
[1641762849956,0.83567385,42463.0,42462.0,0.53667198]
[1641762850356,0.77680016,42463.0,42462.0,0.53667198]
[1641762850755,0.80380016,42463.0,42462.0,0.54667198]
[1641762851159,0.73277448,42463.0,42462.0,0.54667198]
[1641762851364,0.34815448,42463.0,42462.0,0.54667198]
[1641762852257,0.32115448,42463.0,42462.0,0.53467198]
[1641762852557,0.32143284,42463.0,42462.0,0.53467198]
[1641762852757,0.34943284,42463.0,42462.0,0.54467198]
[1641762854711,0.32143284,42463.0,42462.0,0.55267198]
[1641762855712,0.00027836,42463.0,42462.0,0.55267198]
[1641762856114,0.00027836,42463.0,42462.0,0.92021061]
[1641762856312,0.00027836,42463.0,42462.0,0.55267198]
[1641762856712,0.00027836,42463.0,42462.0,0.55367198]
[1641762857157,0.00027836,42463.0,42462.0,0.61253398]
[1641762857555,0.82335046,42469.0,42462.0,0.61253398]
[1641762857755,0.82335046,42469.0,42462.0,0.55367198]
[1641762857956,0.82335046,42469.0,42462.0,0.53467198]
[1641762858157,0.05886723,42468.0,42463.0,0.00020573]
[1641762858356,0.44348723,42468.0,42463.0,0.00020573]
[1641762858857,0.44348723,42468.0,42463.0,0.01020573]
[1641762859956,0.44348723,42468.0,42463.0,0.00020573]
[1641762860158,0.44348723,42468.0,42462.0,0.53467198]
[1641762860359,0.44348723,42468.0,42463.0,0.00020573]
[1641762861218,0.44348723,42468.0,42462.0,0.53767198]
[1641762861417,0.44348723,42468.0,42463.0,0.00020573]
[1641762862620,0.05887119,42465.0,42463.0,0.00020573]
[1641762862920,0.78462,42464.0,42463.0,0.00020573]
[1641762863120,0.38462,42464.0,42463.0,0.00020573]
[1641762863322,0.05887119,42465.0,42463.0,0.00020573]
[1641762863526,0.00027886,42467.0,42462.0,0.53467198]
[1641762864756,0.05887009,42466.0,42462.0,0.53487771]
[1641762866861,0.06387009,42466.0,42462.0,0.57287771]
[1641762867457,0.00027861,42465.0,42462.0,0.57287771]
[1641762867860,0.00027861,42465.0,42462.0,0.57267198]
[1641762868059,0.00027861,42465.0,42462.0,0.53467198]
[1641762869007,0.00027861,42465.0,42462.0,0.55167198]
[1641762869809,0.38462,42464.0,42462.0,0.55167198]
[1641762870008,0.38462,42464.0,42462.0,0.53467198]
[1641762870812,0.38462,42464.0,42462.0,0.54867198]
[1641762870813,0.39162,42464.0,42462.0,0.54867198]
[1641762872060,0.38462,42464.0,42462.0,0.53467198]
[1641762872254,0.38462,42464.0,42463.0,0.2086]
[1641762872460,0.38462,42464.0,42462.0,0.53467198]
[1641762872461,1.53462,42463.0,42462.0,0.2086]
[1641762872657,1.53462,42463.0,42458.0,0.0015946]
[1641762872658,0.00541,42461.0,42458.0,0.0015946]
[1641762872858,1.53584304,42459.0,42458.0,0.0015946]
[1641762873055,1.84891921,42459.0,42458.0,0.0015946]
[1641762873255,1.84891921,42459.0,42458.0,9.46e-05]
[1641762873256,2.57943975,42459.0,42458.0,9.46e-05]
[1641762873455,2.57943975,42459.0,42442.0,2.1006]
[1641762873655,0.81750715,42458.0,42442.0,0.9061]
[1641762873857,0.00121452,42452.0,42442.0,0.9061]
[1641762874055,1.58583452,42452.0,42441.0,0.004]
[1641762874660,1.83866891,42452.0,42441.0,0.004]
[1641762874856,1.84866891,42452.0,42441.0,0.004]
[1641762875256,2.65355749,42452.0,42441.0,0.004]
[1641762876109,2.64355749,42452.0,42441.0,0.004]
[1641762876711,2.74355749,42452.0,42441.0,0.004]
[1641762876913,1.15,42451.0,42443.0,6.598e-05]
[1641762877112,0.05890207,42448.0,42443.0,6.598e-05]
[1641762877315,0.78126956,42447.0,42443.0,6.598e-05]
[1641762877614,0.38462,42447.0,42443.0,6.598e-05]
[1641762877811,0.38462,42447.0,42441.0,0.004]
[1641762878012,0.05889879,42445.0,42441.0,0.00411058]
[1641762878510,0.11780414,42449.0,42441.0,0.00411058]
[1641762878712,0.72385047,42450.0,42441.0,0.00411058]
[1641762878912,0.38462,42449.0,42441.0,0.004]
[1641762879111,0.42234531,42448.0,42441.0,0.00411058]
[1641762879313,0.38462,42447.0,42441.0,0.00411058]
[1641762879557,1.80443801,42442.0,42441.0,0.00411058]
[1641762879756,0.11780898,42446.0,42441.0,0.00411058]
[1641762879963,0.11780898,42446.0,42441.0,0.004]
[1641762880158,0.29621851,42444.0,42441.0,0.004]
[1641762881057,0.35511867,42444.0,42441.0,0.004]
[1641762882261,0.05890016,42444.0,42441.0,0.004]
[1641762882467,0.00027584,42443.0,42441.0,0.004]
[1641762883510,0.00027584,42443.0,42441.0,0.062892]
[1641762884914,0.26643458,42450.0,42443.0,0.22689514]
[1641762885313,0.26643458,42450.0,42443.0,0.28578414]
[1641762886414,0.26643458,42450.0,42443.0,0.22689514]
[1641762886615,0.26643458,42450.0,42441.0,0.004]
[1641762886815,0.26643458,42450.0,42442.0,0.00011357]
[1641762887061,0.33753832,42449.0,42442.0,0.00011357]
[1641762887460,0.26643458,42450.0,42442.0,0.00011357]
[1641762887663,0.0002651,42449.0,42443.0,0.058891]
[1641762888861,0.0001862,42448.0,42443.0,0.058891]
[1641762889461,0.0001862,42448.0,42442.0,0.2460524]
[1641762889862,0.0002651,42449.0,42442.0,0.2458392]
[1641762890061,0.0001862,42447.0,42442.0,0.24605239]
[1641762890812,0.0001862,42447.0,42443.0,0.30132719]
[1641762891014,0.0002651,42449.0,42443.0,0.30132719]
[1641762891212,0.00018987,42447.0,42443.0,0.30132719]
[1641762892214,0.00018988,42447.0,42443.0,0.30132719]
[1641762893214,0.00026498,42448.0,42443.0,0.30132719]
[1641762893415,0.00017933,42447.0,42443.0,0.30132719]
[1641762893816,0.99997363,42447.0,42443.0,0.65466821]
[1641762895062,0.99997363,42447.0,42443.0,0.30132719]
[1641762895466,0.9999735,42447.0,42443.0,0.30132719]
[1641762897567,0.00026472,42446.0,42443.0,0.30132719]
[1641762898408,0.75,42445.0,42440.0,0.11198176]
[1641762898613,0.00026472,42446.0,42440.0,0.11198176]
[1641762899807,0.27847536,42446.0,42440.0,0.11198176]
[1641762900007,0.00026472,42446.0,42440.0,0.11209533]
[1641762900909,0.00026472,42446.0,42440.0,0.11198176]
[1641762901110,0.00026472,42446.0,42440.0,0.11209533]
[1641762901509,0.00026472,42446.0,42445.0,0.24672076]
[1641762902358,0.00026472,42446.0,42444.0,0.058888]
[1641762902558,0.0002646,42445.0,42444.0,0.058888]
[1641762903458,0.0002646,42445.0,42444.0,0.29966018]
[1641762904859,0.0002646,42445.0,42444.0,0.33766018]
[1641762906111,0.0002646,42445.0,42444.0,0.29966018]
[1641762906309,0.0002646,42445.0,42444.0,0.058888]
[1641762906710,0.0002646,42445.0,42440.0,0.11219083]
[1641762907309,0.0002646,42445.0,42444.0,0.26289402]
[1641762907611,1.0000589,42447.0,42444.0,0.30989402]
[1641762907813,0.00017978,42445.0,42444.0,0.9079498]
[1641762908013,0.00017978,42445.0,42444.0,1.0079498]
[1641762908214,0.00017978,42445.0,42444.0,1.2079498]
[1641762908411,0.5,42454.0,42449.0,0.01229635]
[1641762908614,0.5,42454.0,42451.0,0.71994848]
[1641762908810,0.5,42454.0,42452.0,0.047]
[1641762909210,0.01206582,42453.0,42452.0,0.047]
[1641762909411,0.02415563,42453.0,42452.0,0.69827409]
[1641762909672,0.01208981,42453.0,42452.0,0.79827409]
[1641762909871,0.02417962,42453.0,42452.0,1.19548234]
[1641762910273,0.02389609,42453.0,42452.0,1.19548234]
[1641762910879,0.02389609,42453.0,42452.0,1.22048234]
[1641762912078,0.02389609,42453.0,42452.0,1.47048234]
[1641762912276,0.02389609,42453.0,42452.0,1.44548234]
[1641762912478,0.02415067,42453.0,42452.0,1.49548234]
[1641762912678,0.00025458,42453.0,42452.0,1.49548234]
[1641762912881,0.5,42454.0,42453.0,1.35]
[1641762912882,0.05048612,42454.0,42453.0,1.35]
[1641762913081,0.00012219,42458.0,42453.0,1.99709733]
[1641762913317,0.00420573,42461.0,42459.0,0.2]
[1641762913520,0.00420573,42461.0,42460.0,1.50278588]
[1641762913716,0.00420573,42461.0,42460.0,0.69967397]
[1641762913915,0.00420573,42461.0,42460.0,0.84967397]
[1641762914314,0.00420573,42461.0,42460.0,1.39967397]
[1641762914914,0.00420573,42461.0,42460.0,1.42867397]
[1641762915915,0.00420573,42461.0,42460.0,1.12867397]
[1641762916416,0.00420573,42461.0,42460.0,0.88178588]
[1641762916718,0.00420573,42461.0,42460.0,0.24828633]
[1641762916916,0.00420573,42461.0,42460.0,0.84494294]
[1641762917665,0.0044543,42461.0,42460.0,0.84494294]
[1641762918466,0.0044543,42461.0,42460.0,1.10831732]
[1641762919066,0.0044543,42461.0,42460.0,1.14931732]
[1641762919265,0.0044543,42461.0,42460.0,1.09931732]
[1641762919468,0.0044543,42461.0,42460.0,1.14931732]
[1641762919666,0.0044543,42461.0,42460.0,1.04931732]
[1641762919866,0.0044543,42461.0,42460.0,1.09931732]
[1641762920066,0.0044543,42461.0,42460.0,1.14931732]
[1641762920267,0.0044543,42461.0,42460.0,1.07931732]
[1641762921221,0.0044543,42461.0,42460.0,1.42931732]
[1641762921616,0.00018012,42463.0,42462.0,1.2]
[1641762921817,0.00012219,42466.0,42462.0,1.71365377]
[1641762922017,0.00017984,42463.0,42462.0,1.92250034]
[1641762922418,0.20552338,42478.0,42473.0,0.43292426]
[1641762923117,0.21352338,42478.0,42473.0,0.45292426]
[1641762923319,0.008,42478.0,42475.0,0.28498959]
[1641762923518,0.008,42478.0,42475.0,0.34383459]
[1641762924317,0.2369506,42480.0,42475.0,0.34383459]
[1641762925061,0.2409506,42480.0,42475.0,0.36583459]
[1641762926367,0.00018591,42480.0,42475.0,0.34383459]
[1641762926963,0.00518591,42480.0,42475.0,0.36283459]
[1641762927364,0.005,42480.0,42475.0,0.077845]
[1641762927564,0.00024048,42479.0,42475.0,0.077845]
[1641762927964,0.00024048,42479.0,42475.0,0.047845]
[1641762928413,0.00024048,42479.0,42475.0,0.028845]
[1641762928613,0.0004162,42479.0,42475.0,0.028845]
[1641762929017,0.0004162,42479.0,42475.0,0.048845]
[1641762929614,0.00024048,42479.0,42475.0,0.048845]
[1641762929813,0.0004162,42479.0,42475.0,0.048845]
[1641762930816,0.00041968,42479.0,42475.0,0.048845]
[1641762931016,0.00041968,42479.0,42475.0,0.049845]
[1641762931819,0.00024048,42479.0,42475.0,0.049845]
[1641762932067,0.00042005,42479.0,42475.0,0.049845]
[1641762932267,0.00042005,42479.0,42475.0,0.028845]
[1641762932467,0.00024036,42478.0,42475.0,0.028845]
[1641762932668,0.77680019,42482.0,42475.0,0.24247071]
[1641762933070,0.77680019,42482.0,42475.0,0.25747071]
[1641762933970,0.32165973,42482.0,42475.0,0.25747071]
[1641762934373,0.2845,42486.0,42479.0,0.058835]
[1641762934575,0.0706085,42488.0,42479.0,3.04955436]
[1641762934771,0.0042,42489.0,42479.0,2.66716948]
[1641762934970,0.0042,42489.0,42479.0,2.76716948]
[1641762935176,0.0042,42489.0,42479.0,2.77716948]
[1641762935372,0.0042,42489.0,42484.0,0.28223983]
[1641762935573,0.0042,42489.0,42486.0,0.058827]
[1641762936020,0.53233243,42491.0,42486.0,0.058827]
[1641762936420,0.00018552,42490.0,42486.0,0.058827]
[1641762937122,0.00018552,42490.0,42486.0,0.067827]
[1641762937321,0.30657924,42491.0,42486.0,0.067827]
[1641762937520,0.00041737,42490.0,42486.0,0.067827]
[1641762937822,0.00041737,42490.0,42486.0,0.009]
[1641762938321,0.21738719,42490.0,42485.0,0.117653]
[1641762938520,0.21757271,42490.0,42485.0,0.117653]
[1641762939023,0.21757271,42490.0,42485.0,0.125653]
[1641762939425,0.21738719,42490.0,42485.0,0.125653]
[1641762939666,0.28981142,42484.0,42480.0,0.76028705]
[1641762939966,0.21757637,42490.0,42480.0,0.76028705]
[1641762940167,0.21757637,42490.0,42485.0,0.058829]
[1641762940666,0.21756587,42490.0,42485.0,0.058829]
[1641762941067,0.24025609,42488.0,42485.0,0.067829]
[1641762942371,0.24025609,42488.0,42485.0,0.058829]
[1641762942572,0.00023148,42487.0,42485.0,0.058829]
[1641762943172,0.00023148,42487.0,42485.0,0.070829]
[1641762944413,0.00023148,42487.0,42485.0,0.058829]
[1641762945115,0.00023148,42487.0,42485.0,0.070829]
[1641762946317,0.00023148,42487.0,42485.0,0.058829]
[1641762947163,0.00023148,42487.0,42485.0,0.071829]
[1641762947562,0.00023135,42486.0,42485.0,0.071829]
[1641762948364,0.00023135,42486.0,42485.0,0.058829]
[1641762949164,0.00023135,42486.0,42485.0,0.071829]
[1641762950367,0.00023135,42486.0,42484.0,0.011198]
[1641762950368,0.0001,42485.0,42484.0,0.011198]
[1641762951214,0.0001,42485.0,42484.0,0.025198]
[1641762952413,0.00033122,42485.0,42484.0,0.025198]
[1641762953314,0.00033122,42485.0,42484.0,0.014]
[1641762954415,0.00033122,42485.0,42483.0,0.164653]
[1641762955268,0.00033122,42485.0,42483.0,0.179653]
[1641762956567,0.00033122,42485.0,42483.0,0.164653]
[1641762957166,0.00033122,42485.0,42483.0,0.179653]
[1641762957567,0.0002311,42484.0,42483.0,0.179653]
[1641762958170,4.781e-05,42485.0,42483.0,0.179653]
[1641762958437,4.781e-05,42485.0,42483.0,0.164653]
[1641762959238,4.781e-05,42485.0,42483.0,0.181653]
[1641762960138,1.00004781,42485.0,42483.0,0.181653]
[1641762960441,1.00004781,42485.0,42483.0,0.164653]
[1641762960839,1.00004781,42485.0,42484.0,1.35738659]
[1641762961039,1.00004781,42485.0,42484.0,1.50438659]
[1641762961339,1.00004781,42485.0,42484.0,1.147]
[1641762961741,1.00004781,42485.0,42484.0,0.59826474]
[1641762961940,1.00004781,42485.0,42484.0,0.62186801]
[1641762962562,1.0002694,42485.0,42484.0,0.37186801]
[1641762963262,1.0002694,42485.0,42484.0,0.77339427]
[1641762964064,0.5297514,42485.0,42484.0,1.32339427]
[1641762964464,0.0492384,42485.0,42484.0,1.30639427]
[1641762965066,0.0001791,42487.0,42486.0,1.2]
[1641762965269,0.0001791,42487.0,42486.0,1.67471709]
[1641762965469,0.75746324,42499.0,42488.0,0.2]
[1641762965672,0.75746324,42499.0,42494.0,0.24654853]
[1641762965913,0.28694635,42499.0,42494.0,0.24654853]
[1641762966315,0.28694635,42499.0,42492.0,0.49395284]
[1641762966912,0.058813,42497.0,42492.0,0.49395284]
[1641762967113,0.058813,42497.0,42492.0,0.50395284]
[1641762967314,0.058813,42497.0,42495.0,0.117624]
[1641762969214,0.058813,42497.0,42495.0,0.127624]
[1641762970467,0.058813,42497.0,42495.0,0.117624]
[1641762971169,0.058813,42497.0,42495.0,0.126624]
[1641762972371,0.058813,42497.0,42495.0,0.117624]
[1641762972573,0.00021375,42496.0,42495.0,0.117624]
[1641762973174,0.00021375,42496.0,42495.0,0.127624]
[1641762974522,0.00021375,42496.0,42495.0,0.117624]
[1641762975222,0.00021375,42496.0,42495.0,0.127624]
[1641762976423,0.00021375,42496.0,42495.0,0.117624]
[1641762977169,0.00021375,42496.0,42495.0,0.128624]
[1641762978468,0.00021375,42496.0,42495.0,0.117624]
[1641762978672,0.00021375,42496.0,42491.0,0.00020568]
[1641762978867,0.058816,42494.0,42492.0,0.047]
[1641762980068,0.058816,42494.0,42492.0,0.105816]
[1641762981118,0.058816,42494.0,42492.0,0.118816]
[1641762982420,0.00021337,42493.0,42492.0,0.105816]
[1641762983220,0.00021337,42493.0,42492.0,0.124816]
[1641762984566,0.00021337,42493.0,42492.0,0.105816]
[1641762985266,0.00021337,42493.0,42492.0,0.123816]
[1641762986366,0.00021337,42493.0,42492.0,0.105816]
[1641762987169,0.00021337,42493.0,42492.0,0.124816]
[1641762988069,0.00021337,42493.0,42492.0,0.47916374]
[1641762988330,0.00021337,42493.0,42492.0,0.124816]
[1641762988529,0.00021337,42493.0,42492.0,0.105816]
[1641762989132,0.00021337,42493.0,42492.0,0.124816]
[1641762990731,0.00021337,42493.0,42492.0,0.105816]
[1641762991234,0.00021337,42493.0,42492.0,0.121816]
[1641762992478,0.00021337,42493.0,42492.0,0.105816]
[1641762993180,0.00021337,42493.0,42492.0,0.121816]
[1641762994384,0.00021337,42493.0,42492.0,0.105816]
[1641762994580,0.00021337,42493.0,42492.0,0.4588427]
[1641762994780,0.00021337,42493.0,42492.0,0.6588427]
[1641762995182,0.00021337,42493.0,42492.0,0.6818427]
[1641762996518,0.00021337,42493.0,42492.0,0.6588427]
[1641762997323,0.00021337,42493.0,42492.0,0.6828427]
[1641762998425,0.00021337,42493.0,42492.0,1.6088427]
[1641762998723,0.00017714,42495.0,42494.0,1.1]
[1641762998922,0.0003,42502.0,42496.0,0.2]
[1641762998923,0.00010714,42500.0,42496.0,0.2]
[1641762999122,0.00010714,42500.0,42497.0,0.105803]
[1641762999573,0.00010714,42500.0,42498.0,0.28445754]
[1641762999767,0.00010714,42500.0,42499.0,0.047]
[1641762999968,0.05891114,42500.0,42499.0,0.047]
[1641763000666,0.05891114,42500.0,42499.0,0.42868856]
[1641763000867,0.05891114,42500.0,42499.0,0.52868856]
[1641763001269,0.00010714,42500.0,42499.0,0.54668856]
[1641763001969,0.00010714,42500.0,42499.0,0.74668856]
[1641763002170,0.00010714,42500.0,42499.0,0.365]
[1641763002570,0.00021457,42500.0,42499.0,0.347]
[1641763002972,0.0002,42501.0,42500.0,1.0]
[1641763003168,0.0002,42501.0,42500.0,1.12003616]
[1641763003820,0.0002,42501.0,42500.0,0.32003616]
[1641763004020,0.0002,42501.0,42500.0,0.71994137]
[1641763005019,0.0003,42502.0,42501.0,0.25174075]
[1641763005220,0.0003,42502.0,42501.0,0.9053875]
[1641763005421,0.0002,42502.0,42501.0,0.9053875]
[1641763005721,0.0001866,42504.0,42503.0,0.85]
[1641763005922,0.0001866,42504.0,42503.0,0.61139324]
[1641763006323,0.0010866,42509.0,42504.0,0.55]
[1641763006524,0.0003,42511.0,42507.0,0.058793]
[1641763006723,0.00011948,42509.0,42507.0,0.047]
[1641763007372,0.00011948,42509.0,42507.0,0.066]
[1641763007572,0.00011948,42509.0,42507.0,0.41969398]
[1641763007971,0.05891248,42509.0,42507.0,0.42015535]
[1641763008170,0.05891248,42509.0,42507.0,0.61978836]
[1641763008372,0.058793,42509.0,42507.0,0.266]
[1641763008572,0.058793,42509.0,42507.0,0.247]
[1641763008971,0.058793,42509.0,42508.0,0.058792]
[1641763009572,0.033793,42509.0,42508.0,0.105792]
[1641763011326,0.033793,42509.0,42508.0,0.122792]
[1641763011523,0.033793,42509.0,42508.0,0.017]
[1641763011524,1.66841299,42509.0,42508.0,0.017]
[1641763012219,1.15,42508.0,42506.0,0.00021302]
[1641763012426,0.38462,42507.0,42506.0,0.00021302]
[1641763012620,0.03399906,42509.0,42506.0,0.00021302]